fUSD/lending_fUSD_20240719
["ID","MTS","AMOUNT","RATE_DAILY","PERIOD"]
[332668217,1721413853245,-500.0,0.0003452,14]
[332668219,1721413853254,-3440.22,0.0003452,14]
[332668221,1721413853263,-1652.99,0.0003452,14]
[332668223,1721413853272,-500.0,0.0003452,14]
[332668225,1721413853281,-926.7,0.0003452,14]
[332668227,1721413853291,-2881.1,0.0003452,14]
[332668229,1721413853300,-500.0,0.0003452,14]
[332668231,1721413853310,-3366.71,0.0003452,14]
[332668233,1721413853321,-1626.28,0.0003452,14]
[332668235,1721413853330,-7404.88,0.0003452,14]
[332668237,1721413853343,-500.0,0.0003452,14]
[332668239,1721413853353,-500.0,0.0003452,14]
[332668241,1721413853362,-2083.96,0.0003452,14]
[332668243,1721413853371,-4618.08,0.0003452,14]
[332668245,1721413853380,-1506.78,0.0003452,14]
[332668247,1721413853389,-500.0,0.0003452,14]
[332668249,1721413853399,-6661.72,0.0003452,14]
[332668251,1721413853408,-2577.17240877,0.0003452,14]
[332668306,1721413853948,-1340.83521693,0.0003452,14]
[332668312,1721413854001,-3487.9023743,0.0003452,14]
[332668314,1721413854011,-1132.75049934,0.0003452,14]
[332668316,1721413854023,-3015.97067522,0.0003452,14]
[332668378,1721413854877,-361.0,0.00029277,2]
[332668380,1721413854888,-693.77,0.00029277,2]
[332668382,1721413854899,-558.23,0.00029277,2]
[332668383,1721413854908,-562.21,0.00030436,10]
[332668385,1721413854918,-215.92,0.0003452,14]
[332668388,1721413854929,-135.68882544,0.0003452,14]
[332668390,1721413854939,-477.40943211,0.0003452,14]
[332668392,1721413854950,-296.01056789,0.0003452,14]
[332668394,1721413854962,-75.87926383,0.0003452,14]
[332668395,1721413854973,-3976.92073617,0.0003452,14]
[332668396,1721413854983,-699.1,0.0003452,14]
[332668397,1721413854992,-802.27,0.0003452,14]
[332668398,1721413855002,-522.84,0.0003452,14]
[332668399,1721413855012,-1000.94,0.0003452,14]
[332668400,1721413855021,-2408.23,0.0003452,14]
[332668401,1721413855030,-3636.39,0.0003452,14]
[332668402,1721413855039,-602.1,0.0003452,14]
[332668403,1721413855048,-500.0,0.0003452,14]
[332668404,1721413855057,-500.0,0.0003452,14]
[332668405,1721413855067,-1380.16318152,0.0003452,14]
[332668406,1721413855079,-419.87653924,0.0003452,14]
[332668407,1721413855091,-851.90336111,0.0003452,14]
[332668408,1721413855102,-1082.1114,0.0003452,14]
[332668409,1721413855115,-546.77551813,0.0003452,14]
[332668410,1721413855125,-3325.68,0.0003452,14]
[332668411,1721413855134,-3507.14,0.0003452,14]
[332668412,1721413855144,-500.0,0.0003452,14]
[332668413,1721413855154,-500.0,0.0003452,14]
[332668414,1721413855164,-1616.1,0.0003452,14]
[332668415,1721413855173,-1062.75,0.0003452,14]
[332668416,1721413855182,-1175.93284771,0.0003452,14]
[332668417,1721413855194,-1154.04715229,0.0003452,14]
[332668418,1721413855203,-503.83,0.0003452,14]
[332668419,1721413855215,-2203.59,0.0003452,14]
[332668420,1721413855225,-657.33,0.0003452,14]
[332668421,1721413855234,-909.93,0.0003452,14]
[332668422,1721413855246,-500.0,0.0003452,14]
[332668423,1721413855255,-3544.36,0.0003452,14]
[332668424,1721413855264,-544.98,0.0003452,14]
[332668425,1721413855274,-4482.12,0.0003452,14]
[332668426,1721413855287,-500.0,0.0003452,14]
[332668427,1721413855296,-800.98,0.0003452,14]
[332668428,1721413855305,-917.65,0.0003452,14]
[332668429,1721413855315,-151.0,0.0003452,7]
[332668430,1721413855326,-500.0,0.0003452,14]
[332668431,1721413855337,-4123.81,0.0003452,14]
[332668432,1721413855347,-500.0,0.0003452,14]
[332668433,1721413855358,-504.15,0.0003452,14]
[332668434,1721413855368,-597.08,0.0003452,14]
[332668435,1721413855378,-2175.63,0.0003452,14]
[332668436,1721413855387,-3177.38,0.0003452,14]
[332668437,1721413855398,-500.0,0.0003452,14]
[332668438,1721413855408,-3842.92,0.0003452,14]
[332668439,1721413855418,-2470.01,0.0003452,14]
[332668440,1721413855427,-2037.2,0.0003452,14]
[332668441,1721413855438,-1197.36,0.0003452,14]
[332668442,1721413855448,-512.75,0.0003452,14]
[332668443,1721413855459,-500.0,0.0003452,14]
[332668444,1721413855468,-1573.5,0.0003452,14]
[332668445,1721413855477,-2539.4,0.0003452,14]
[332668446,1721413855487,-500.0,0.0003452,14]
[332668447,1721413855497,-500.0,0.0003452,14]
[332668448,1721413855507,-500.0,0.0003452,14]
[332668449,1721413855518,-2932.46,0.0003452,14]
[332668450,1721413855528,-2628.83,0.0003452,14]
[332668451,1721413855537,-2632.88,0.0003452,14]
[332668452,1721413855547,-500.0,0.0003452,14]
[332668453,1721413855556,-684.11,0.0003452,14]
[332668454,1721413855565,-1422.67,0.0003452,14]
[332668455,1721413855575,-298.5941,0.00034524,7]
[332668456,1721413855584,-151.0,0.00034524,7]
[332668457,1721413855594,-151.0,0.00034524,7]
[332668458,1721413855603,-7016.1050298,0.00034524,2]
[332668459,1721413855612,-236.87114,0.00034524,7]
[332668460,1721413855622,-160.41388,0.00034524,7]
[332668461,1721413855632,-160.41388,0.00034524,7]
[332668462,1721413855641,-202.245628,0.00034524,7]
[332668463,1721413855650,-202.245628,0.00034524,7]
[332668464,1721413855659,-151.0,0.00034524,7]
[332668465,1721413855668,-500.0,0.0003453,17]
[332668466,1721413855678,-500.0,0.0003454,18]
[332668467,1721413855687,-150.0,0.00034548,10]
[332668468,1721413855697,-500.0,0.0003455,19]
[332668469,1721413855706,-337.15356188,0.0003456,2]
[332668470,1721413856404,-280.372,0.00029277,2]
[332668471,1721413856416,-791.628,0.00029277,2]
[332668472,1721413856426,-39.88667711,0.00031865,2]
[332668473,1721413856545,-571.13282997,0.00031865,2]
[332668474,1721413856586,-667.27494503,0.00031865,2]
[332668475,1721413856598,-547.84176427,0.00031865,2]
[332668476,1721413856609,-337.08969517,0.00031865,2]
[332668477,1721413856621,-354.34758247,0.00031865,2]
[332668478,1721413856695,-620.1702649,0.00031865,2]
[332668479,1721413856784,-683.33355662,0.00031865,2]
[332668595,1721415033461,-150.0,0.00015,2]
[332668596,1721415033470,-166.04615262,0.000169,2]
[332668597,1721415033483,-200.0,0.00017,2]
[332668598,1721415033492,-250.0,0.00019,2]
[332668599,1721415033501,-474.0,0.000193,2]
[332668600,1721415033511,-590.08,0.00019452,2]
[332668601,1721415033520,-300.0,0.00021,2]
[332668602,1721415033529,-350.0,0.00023,2]
[332668603,1721415033538,-631.27666107,0.00026686,3]
[332668604,1721415033577,-11694.56558037,0.00026686,3]
[332668605,1721415033586,-227.43774807,0.00026788,5]
[332668606,1721415033595,-311.09036046,0.00026967,2]
[332668607,1721415033604,-355.71,0.00028976,2]
[332668608,1721415033613,-150.34684401,0.00028982,2]
[332668609,1721415033623,-600.0,0.00029628,2]
[332668610,1721415033632,-500.0,0.00029628,2]
[332668611,1721415033642,-150.47097929,0.00029762,2]
[332668612,1721415033651,-560.08679513,0.0003,2]
[332668613,1721415033661,-8509.94357223,0.0003,4]
[332668614,1721415033671,-250.0,0.00030409,2]
[332668615,1721415033680,-150.0,0.00030645,2]
[332668616,1721415033691,-23900.0,0.00030646,2]
[332668617,1721415033701,-500.0,0.00030724,10]
[332668618,1721415033711,-187.86,0.00030842,2]
[332668619,1721415033720,-491.01,0.00030894,2]
[332668620,1721415033729,-355.71,0.0003124,2]
[332668621,1721415033739,-2215.1736,0.00031765,2]
[332668622,1721415033748,-500.0,0.0003182,10]
[332668623,1721415033757,-1001.88,0.000328,2]
[332668624,1721415033767,-500.0,0.00032916,10]
[332668625,1721415033777,-152.27464437,0.000333,7]
[332668626,1721415033787,-2000.0,0.000335,3]
[332668627,1721415033796,-623.33,0.000335,31]
[332668628,1721415033806,-623.33,0.000335,31]
[332668629,1721415033815,-623.33,0.000335,31]
[332668630,1721415033824,-623.33,0.000335,31]
[332668631,1721415033833,-623.33,0.000335,31]
[332668632,1721415033843,-623.33,0.000335,31]
[332668633,1721415033853,-623.33,0.000335,31]
[332668634,1721415033862,-623.33,0.000335,31]
[332668635,1721415033872,-623.33,0.000335,31]
[332668636,1721415033881,-623.33,0.000335,31]
[332668637,1721415033892,-623.33,0.000335,31]
[332668639,1721415033901,-623.33,0.000335,31]
[332668641,1721415033910,-623.33,0.000335,31]
[332668642,1721415033920,-623.33,0.000335,31]
[332668643,1721415033929,-623.33,0.000335,31]
[332668644,1721415033939,-623.33,0.000335,31]
[332668645,1721415033948,-623.33,0.000335,31]
[332668646,1721415033960,-623.33,0.000335,31]
[332668647,1721415033970,-623.33,0.000335,31]
[332668648,1721415033979,-623.33,0.000335,31]
[332668649,1721415033990,-355.71,0.00033504,2]
[332668650,1721415033999,-833.09,0.00033671,2]
[332668651,1721415034008,-419.77,0.00033671,2]
[332668652,1721415034018,-833.09,0.00033671,2]
[332668653,1721415034028,-833.09,0.00033671,2]
[332668654,1721415034038,-833.09,0.00033671,2]
[332668655,1721415034047,-833.09,0.00033671,2]
[332668656,1721415034057,-833.09,0.00033671,2]
[332668657,1721415034066,-644.06615805,0.00033671,2]
[332668658,1721415034078,-189.02384195,0.00033671,2]
[332668659,1721415034088,-216.54,0.00033671,2]
[332668660,1721415034098,-1001.88,0.00033895,2]
[332668661,1721415034108,-2014.0,0.00033904,2]
[332668662,1721415034117,-4013.5,0.00034,4]
[332668663,1721415034127,-500.0,0.00034012,10]
[332668664,1721415034136,-161.237997,0.0003408,6]
[332668665,1721415034146,-300.0,0.00034082,2]
[332668666,1721415034155,-329.95,0.00034082,2]
[332668667,1721415034165,-150.0,0.00034082,2]
[332668668,1721415034175,-170.35906832,0.00034136,2]
[332668669,1721415034184,-468.51,0.00034136,10]
[332668670,1721415034197,-2500.0,0.00034136,2]
[332668671,1721415034206,-169.35089189,0.00034146,2]
[332668672,1721415034216,-9056.8238623,0.00034146,15]
[332668673,1721415034226,-709.054,0.00034146,2]
[332668674,1721415034236,-7500.0,0.00034146,2]
[332668675,1721415034246,-325.3911,0.00034146,2]
[332668676,1721415034257,-500.0,0.00034179,2]
[332668677,1721415034267,-179.0,0.000342,23]
[332668678,1721415034277,-200.0,0.00034211,10]
[332668679,1721415034287,-235853.164968,0.00034236,5]
[332668680,1721415034296,-153.12,0.00034236,2]
[332668681,1721415034305,-198.00670023,0.00034236,2]
[332668682,1721415034314,-500.0,0.00034246,14]
[332668683,1721415034323,-500.0,0.00034246,14]
[332668684,1721415034334,-500.0,0.00034246,14]
[332668685,1721415034343,-500.0,0.00034246,14]
[332668686,1721415034352,-542.89,0.00034246,14]
[332668687,1721415034505,-500.0,0.00034246,14]
[332668688,1721415034516,-500.0,0.00034246,14]
[332668689,1721415034526,-500.0,0.00034246,14]
[332668690,1721415034535,-1395.67,0.00034246,14]
[332668691,1721415034545,-500.0,0.00034246,14]
[332668692,1721415034555,-500.0,0.00034246,14]
[332668693,1721415034564,-500.0,0.00034246,14]
[332668694,1721415034574,-500.0,0.00034246,14]
[332668695,1721415034583,-707.27,0.00034246,14]
[332668696,1721415034592,-604.28,0.00034246,14]
[332668697,1721415034602,-541.6,0.00034246,14]
[332668698,1721415034611,-500.0,0.00034246,14]
[332668699,1721415034621,-929.84,0.00034246,14]
[332668700,1721415034630,-500.0,0.00034246,14]
[332668701,1721415034639,-500.0,0.00034246,14]
[332668702,1721415034649,-500.0,0.00034246,14]
[332668703,1721415034659,-497.48250961,0.00034246,14]
[332668704,1721415034668,-500.0,0.00034246,14]
[332668705,1721415034678,-500.0,0.00034246,14]
[332668706,1721415034689,-500.0,0.00034246,14]
[332668707,1721415034699,-500.0,0.00034246,14]
[332668708,1721415034708,-500.0,0.00034246,14]
[332668709,1721415034717,-992.88,0.00034246,14]
[332668710,1721415034727,-500.0,0.00034246,14]
[332668711,1721415034736,-901.69,0.00034246,14]
[332668712,1721415034745,-661.93,0.00034246,14]
[332668713,1721415034755,-500.0,0.00034246,14]
[332668714,1721415034765,-652.64,0.00034246,14]
[332668715,1721415034774,-500.0,0.00034246,14]
[332668716,1721415034784,-500.0,0.00034246,14]
[332668717,1721415034794,-500.0,0.00034246,14]
[332668718,1721415034803,-637.19,0.00034246,14]
[332668720,1721415034813,-878.69,0.00034246,14]
[332668721,1721415034822,-742.14,0.00034246,14]
[332668722,1721415034832,-500.0,0.00034246,14]
[332668723,1721415034841,-500.0,0.00034246,14]
[332668724,1721415034850,-500.0,0.00034246,14]
[332668725,1721415034860,-505.76,0.00034246,14]
[332668726,1721415034869,-500.0,0.00034246,14]
[332668727,1721415034879,-500.0,0.00034246,14]
[332668728,1721415034889,-500.0,0.00034246,14]
[332668729,1721415034899,-500.0,0.00034246,14]
[332668730,1721415034909,-500.0,0.00034246,14]
[332668731,1721415034918,-500.0,0.00034246,14]
[332668732,1721415034928,-500.0,0.00034246,14]
[332668733,1721415034938,-500.0,0.00034246,14]
[332668734,1721415034947,-643.16,0.00034246,14]
[332668735,1721415034957,-500.0,0.00034246,14]
[332668736,1721415034967,-500.0,0.00034246,14]
[332668737,1721415034977,-682.03,0.00034246,14]
[332668738,1721415034987,-500.0,0.00034246,14]
[332668739,1721415034996,-500.0,0.00034246,14]
[332668740,1721415035006,-500.0,0.00034246,14]
[332668741,1721415035016,-192.09109075,0.00034246,14]
[332668742,1721415035026,-576.13,0.00034246,14]
[332668743,1721415035035,-500.0,0.00034246,14]
[332668744,1721415035046,-500.0,0.00034246,14]
[332668745,1721415035056,-500.0,0.00034246,14]
[332668746,1721415035065,-819.97,0.00034246,14]
[332668747,1721415035075,-397.38057783,0.00034246,14]
[332668748,1721415035085,-500.0,0.00034246,14]
[332668749,1721415035094,-774.03,0.00034246,14]
[332668750,1721415035103,-500.0,0.00034246,14]
[332668751,1721415035113,-528.53,0.00034246,14]
[332668752,1721415035122,-500.0,0.00034246,14]
[332668753,1721415035132,-807.91,0.00034246,14]
[332668754,1721415035141,-500.0,0.00034246,14]
[332668755,1721415035151,-500.0,0.00034246,14]
[332668756,1721415035160,-613.8,0.00034246,14]
[332668757,1721415035170,-1061.11,0.00034246,14]
[332668758,1721415035180,-723.67,0.00034246,14]
[332668759,1721415035189,-500.0,0.00034246,14]
[332668760,1721415035198,-500.0,0.00034246,14]
[332668761,1721415035208,-500.0,0.00034246,14]
[332668762,1721415035217,-935.24,0.00034246,14]
[332668763,1721415035226,-500.0,0.00034246,14]
[332668764,1721415035235,-500.0,0.00034246,14]
[332668765,1721415035245,-500.0,0.00034246,14]
[332668766,1721415035258,-500.0,0.00034246,14]
[332668767,1721415035267,-500.0,0.00034246,14]
[332668768,1721415035277,-500.0,0.00034246,14]
[332668769,1721415035287,-1173.55,0.00034246,14]
[332668770,1721415035297,-524.49963544,0.00034246,14]
[332668771,1721415035307,-1075.36,0.00034246,14]
[332668772,1721415035316,-500.0,0.00034246,14]
[332668773,1721415035328,-583.45,0.00034246,14]
[332668774,1721415035338,-500.0,0.00034246,14]
[332668775,1721415035347,-500.0,0.00034246,14]
[332668776,1721415035356,-500.0,0.00034246,14]
[332668777,1721415035366,-580.01,0.00034246,14]
[332668778,1721415035375,-500.0,0.00034246,14]
[332668779,1721415035385,-500.0,0.00034246,14]
[332668780,1721415035394,-974.55,0.00034246,14]
[332668781,1721415035404,-556.8,0.00034246,14]
[332668782,1721415035413,-500.0,0.00034246,14]
[332668783,1721415035424,-500.0,0.00034246,14]
[332668784,1721415035434,-500.0,0.00034246,14]
[332668785,1721415035446,-723.98,0.00034246,14]
[332668786,1721415035455,-500.0,0.00034246,14]
[332668787,1721415035465,-500.0,0.00034246,14]
[332668788,1721415035474,-635.98,0.00034246,14]
[332668789,1721415035485,-1230.17,0.00034246,14]
[332668790,1721415035494,-500.0,0.00034246,14]
[332668791,1721415035503,-500.0,0.00034246,14]
[332668792,1721415035513,-500.0,0.00034246,14]
[332668793,1721415035522,-813.54,0.00034246,14]
[332668794,1721415035531,-500.0,0.00034246,14]
[332668795,1721415035541,-1042.59,0.00034246,14]
[332668796,1721415035551,-2135.1,0.00034246,14]
[332668797,1721415035560,-500.0,0.00034246,14]
[332668798,1721415035570,-500.0,0.00034246,14]
[332668799,1721415035579,-500.0,0.00034246,14]
[332668800,1721415035588,-500.0,0.00034246,14]
[332668801,1721415035598,-500.0,0.00034246,14]
[332668802,1721415035607,-1318.12,0.00034246,14]
[332668803,1721415035616,-500.0,0.00034246,14]
[332668804,1721415035626,-500.0,0.00034246,14]
[332668805,1721415035635,-500.0,0.00034246,14]
[332668806,1721415035645,-500.0,0.00034246,14]
[332668807,1721415035654,-827.59,0.00034246,14]
[332668808,1721415035665,-500.0,0.00034246,14]
[332668809,1721415035674,-1440.81,0.00034246,14]
[332668810,1721415035683,-564.69,0.00034246,14]
[332668811,1721415035695,-504.92,0.00034246,14]
[332668812,1721415035704,-500.0,0.00034246,14]
[332668813,1721415035714,-500.0,0.00034246,14]
[332668814,1721415035723,-500.0,0.00034246,14]
[332668815,1721415035732,-500.0,0.00034246,14]
[332668816,1721415035741,-240.79886243,0.00034246,14]
[332668817,1721415035751,-500.0,0.00034246,14]
[332668818,1721415035760,-500.0,0.00034246,14]
[332668819,1721415035769,-500.0,0.00034246,14]
[332668820,1721415035778,-859.94,0.00034246,14]
[332668821,1721415035787,-2183.35,0.00034246,14]
[332668822,1721415035796,-620.1,0.00034246,14]
[332668823,1721415035807,-500.0,0.00034246,14]
[332668824,1721415035816,-1041.05,0.00034246,14]
[332668825,1721415035825,-559.43,0.00034246,14]
[332668826,1721415035835,-500.0,0.00034246,14]
[332668827,1721415035845,-500.0,0.00034246,14]
[332668828,1721415035855,-500.0,0.00034246,14]
[332668829,1721415035864,-500.0,0.00034246,14]
[332668830,1721415035874,-2223.07,0.00034246,14]
[332668831,1721415035883,-621.5,0.00034246,14]
[332668832,1721415035892,-589.79,0.00034246,14]
[332668833,1721415035902,-500.0,0.00034246,14]
[332668834,1721415035911,-500.0,0.00034246,14]
[332668835,1721415035921,-500.0,0.00034246,14]
[332668836,1721415035931,-500.0,0.00034246,14]
[332668837,1721415035941,-989.09,0.00034246,14]
[332668838,1721415035950,-500.0,0.00034246,14]
[332668839,1721415035959,-1727.94,0.00034246,14]
[332668840,1721415035969,-500.0,0.00034246,14]
[332668841,1721415035978,-500.0,0.00034246,14]
[332668842,1721415035988,-500.0,0.00034246,14]
[332668843,1721415035997,-500.0,0.00034246,14]
[332668844,1721415036006,-658.49,0.00034246,14]
[332668845,1721415036016,-721.91,0.00034246,14]
[332668846,1721415036025,-1173.19,0.00034246,14]
[332668847,1721415036034,-500.0,0.00034246,14]
[332668848,1721415036044,-500.0,0.00034246,14]
[332668849,1721415036054,-500.0,0.00034246,14]
[332668850,1721415036064,-510.59,0.00034246,14]
[332668851,1721415036074,-500.0,0.00034246,14]
[332668852,1721415036084,-1105.81,0.00034246,14]
[332668853,1721415036093,-664.05,0.00034246,14]
[332668854,1721415036102,-500.0,0.00034246,14]
[332668855,1721415036111,-500.0,0.00034246,14]
[332668856,1721415036121,-500.0,0.00034246,14]
[332668857,1721415036130,-1144.94,0.00034246,14]
[332668858,1721415036140,-500.0,0.00034246,14]
[332668859,1721415036149,-500.0,0.00034246,14]
[332668860,1721415036159,-500.0,0.00034246,14]
[332668861,1721415036168,-500.0,0.00034246,14]
[332668862,1721415036177,-545.97,0.00034246,14]
[332668863,1721415036187,-500.0,0.00034246,14]
[332668864,1721415036196,-500.0,0.00034246,14]
[332668865,1721415036205,-864.74,0.00034246,14]
[332668866,1721415036214,-500.0,0.00034246,14]
[332668867,1721415036224,-373.36172677,0.00034246,14]
[332668868,1721415036233,-500.0,0.00034246,14]
[332668869,1721415036243,-598.83,0.00034246,14]
[332668870,1721415036256,-500.0,0.00034246,14]
[332668871,1721415036265,-787.46,0.00034246,14]
[332668872,1721415036275,-500.0,0.00034246,14]
[332668873,1721415036284,-500.0,0.00034246,14]
[332668874,1721415036294,-500.0,0.00034246,14]
[332668875,1721415036304,-500.0,0.00034246,14]
[332668876,1721415036313,-992.53,0.00034246,2]
[332668877,1721415036324,-500.0,0.00034246,14]
[332668878,1721415036333,-1116.61,0.00034246,14]
[332668879,1721415036342,-1245.22,0.00034246,14]
[332668880,1721415036352,-500.0,0.00034246,14]
[332668881,1721415036361,-500.0,0.00034246,14]
[332668882,1721415036372,-677.27,0.00034246,14]
[332668883,1721415036381,-500.0,0.00034246,14]
[332668884,1721415036390,-910.47,0.00034246,14]
[332668885,1721415036399,-1483.69,0.00034246,14]
[332668886,1721415036409,-500.0,0.00034246,14]
[332668887,1721415036418,-1114.83,0.00034246,14]
[332668888,1721415036427,-674.46,0.00034246,14]
[332668889,1721415036438,-1141.48,0.00034246,14]
[332668890,1721415036447,-500.0,0.00034246,14]
[332668891,1721415036457,-1644.65,0.00034246,14]
[332668892,1721415036466,-897.51,0.00034246,14]
[332668893,1721415036476,-500.0,0.00034246,14]
[332668894,1721415036487,-823.12,0.00034246,14]
[332668895,1721415036498,-500.0,0.00034246,14]
[332668896,1721415036508,-806.43,0.00034246,14]
[332668897,1721415036518,-582.24,0.00034246,14]
[332668898,1721415036529,-500.0,0.00034246,14]
[332668899,1721415036540,-500.0,0.00034246,14]
[332668900,1721415036549,-1871.84,0.00034246,14]
[332668901,1721415036559,-500.0,0.00034246,14]
[332668902,1721415036569,-552.53,0.00034246,14]
[332668903,1721415036578,-500.0,0.00034246,14]
[332668904,1721415036589,-500.0,0.00034246,14]
[332668905,1721415036601,-1181.66,0.00034246,14]
[332668906,1721415036612,-500.0,0.00034246,14]
[332668907,1721415036622,-560.00000001,0.00034246,14]
[332668908,1721415036632,-500.0,0.00034246,14]
[332668909,1721415036642,-529.03,0.00034246,14]
[332668910,1721415036651,-507.27504158,0.00034246,14]
[332668911,1721415036660,-708.96,0.00034246,14]
[332668912,1721415036670,-500.0,0.00034246,14]
[332668913,1721415036680,-620.22,0.00034246,14]
[332668914,1721415036691,-500.0,0.00034246,14]
[332668915,1721415036700,-1230.09,0.00034246,14]
[332668916,1721415036709,-887.08,0.00034246,14]
[332668917,1721415036719,-1016.19,0.00034246,14]
[332668918,1721415036728,-500.0,0.00034246,14]
[332668919,1721415036738,-500.0,0.00034246,14]
[332668920,1721415036747,-532.51230219,0.00034246,14]
[332668921,1721415036757,-500.0,0.00034246,14]
[332668922,1721415036766,-500.0,0.00034246,14]
[332668923,1721415036775,-500.0,0.00034246,14]
[332668924,1721415036785,-500.0,0.00034246,14]
[332668925,1721415036794,-500.0,0.00034246,14]
[332668926,1721415036804,-405.44736077,0.00034246,14]
[332668927,1721415036813,-500.0,0.00034246,14]
[332668928,1721415036823,-706.48,0.00034246,14]
[332668929,1721415036832,-974.19,0.00034246,14]
[332668930,1721415036843,-503.93,0.00034246,14]
[332668931,1721415036852,-500.0,0.00034246,14]
[332668932,1721415036862,-500.0,0.00034246,14]
[332668933,1721415036872,-1854.33,0.00034246,14]
[332668934,1721415036882,-500.0,0.00034246,14]
[332668935,1721415036891,-1634.16,0.00034246,14]
[332668936,1721415036900,-500.0,0.00034246,14]
[332668937,1721415036910,-733.22,0.00034246,14]
[332668938,1721415036920,-500.0,0.00034246,14]
[332668939,1721415036929,-500.0,0.00034246,14]
[332668940,1721415036939,-674.47,0.00034246,14]
[332668941,1721415036949,-500.0,0.00034246,14]
[332668942,1721415036959,-500.0,0.00034246,14]
[332668943,1721415036968,-500.0,0.00034246,14]
[332668944,1721415036978,-500.0,0.00034246,14]
[332668945,1721415036987,-1347.8,0.00034246,14]
[332668946,1721415036996,-500.0,0.00034246,14]
[332668947,1721415037006,-500.0,0.00034246,14]
[332668948,1721415037016,-632.68,0.00034246,14]
[332668949,1721415037025,-272.99450084,0.00034246,14]
[332668950,1721415037034,-500.0,0.00034246,14]
[332668951,1721415037043,-1168.81,0.00034246,14]
[332668952,1721415037053,-500.0,0.00034246,14]
[332668953,1721415037062,-500.0,0.00034246,14]
[332668954,1721415037072,-1003.57,0.00034246,14]
[332668955,1721415037082,-1076.29,0.00034246,14]
[332668956,1721415037091,-1047.49,0.00034246,14]
[332668957,1721415037100,-500.0,0.00034246,14]
[332668958,1721415037109,-510.69292858,0.00034246,14]
[332668959,1721415037118,-1160.09,0.00034246,14]
[332668960,1721415037128,-500.0,0.00034246,14]
[332668961,1721415037137,-1193.2,0.00034246,14]
[332668962,1721415037147,-570.48,0.00034246,14]
[332668963,1721415037156,-1982.76,0.00034246,14]
[332668964,1721415037165,-500.0,0.00034246,14]
[332668965,1721415037175,-963.11,0.00034246,14]
[332668966,1721415037184,-1590.18,0.00034246,14]
[332668967,1721415037194,-500.0,0.00034246,14]
[332668968,1721415037203,-518.0,0.00034246,14]
[332668969,1721415037502,-654.01,0.00034246,14]
[332668970,1721415037521,-1965.71,0.00034246,14]
[332668971,1721415037531,-500.0,0.00034246,14]
[332668972,1721415037540,-517.72,0.00034246,14]
[332668973,1721415037550,-1305.99,0.00034246,14]
[332668974,1721415037559,-500.0,0.00034246,14]
[332668975,1721415037569,-500.0,0.00034246,14]
[332668976,1721415037579,-500.0,0.00034246,14]
[332668977,1721415037588,-1738.17,0.00034246,14]
[332668978,1721415037597,-2449.88,0.00034246,14]
[332668979,1721415037606,-816.87,0.00034246,14]
[332668980,1721415037616,-720.83,0.00034246,14]
[332668981,1721415037625,-500.0,0.00034246,14]